fUSD/lending_fUSD_20240515
["ID","MTS","AMOUNT","RATE_DAILY","PERIOD"]
[327075048,1715783433230,-164.29,0.00010642,2]
[327075049,1715783433242,-400.0,0.00010657,2]
[327075050,1715783433252,-164.29,0.00010718,2]
[327075051,1715783433262,-307.0,0.00010771,2]
[327075052,1715783433271,-999.99,0.00010771,2]
[327075053,1715783433281,-523.66,0.00010778,2]
[327075054,1715783433291,-420.16,0.00010778,2]
[327075055,1715783433300,-233.46,0.00010778,2]
[327075056,1715783433309,-150.0,0.00010778,2]
[327075057,1715783433318,-150.0,0.00010778,2]
[327075058,1715783433328,-150.0,0.00010778,2]
[327075059,1715783433337,-163.35,0.00010778,2]
[327075060,1715783433347,-150.0,0.00010778,2]
[327075061,1715783433357,-351.56,0.00010778,2]
[327075062,1715783433367,-164.29,0.00010794,2]
[327075063,1715783433377,-210.0,0.00010837,2]
[327075064,1715783433387,-791.74,0.00010959,2]
[327075065,1715783433396,-11114.04105453,0.00011009,2]
[327075066,1715783438472,-17746.79999995,0.00011009,2]
[327075067,1715783438486,-804.7,0.00011009,2]
[327075068,1715783438843,-515.90558461,0.00011009,2]
[327075069,1715783438857,-11241.42496091,0.00011009,2]
[327075070,1715783438868,-600.0,0.00011093,2]
[327075071,1715783438880,-869.03,0.00011096,2]
[327075072,1715783438890,-869.03,0.00011096,2]
[327075073,1715783438900,-869.03,0.00011096,2]
[327075074,1715783438911,-269.51,0.00011096,2]
[327075075,1715783438924,-300.0,0.000113,4]
[327075076,1715783438935,-2500.0,0.000113,4]
[327075077,1715783438945,-2867.7659,0.00011368,2]
[327075078,1715783438955,-2500.0,0.00011368,2]
[327075079,1715783438967,-1010.456,0.00011368,2]
[327075080,1715783438977,-163.35,0.0001137,2]
[327075081,1715783438987,-150.0,0.0001137,2]
[327075082,1715783438997,-180.89,0.0001137,2]
[327075083,1715783439008,-150.0,0.0001137,2]
[327075084,1715783439019,-1412.27528136,0.00011398,2]
[327075085,1715783439030,-700.0,0.000114,4]
[327075086,1715783439040,-5100.0,0.000114,4]
[327075087,1715783439051,-4794.9166,0.00011468,2]
[327075088,1715783439061,-3336.3254,0.00011468,2]
[327075089,1715783439072,-53668.642,0.00011468,2]
[327075090,1715783439082,-695.3295,0.00011468,2]
[327075091,1715783439093,-1100.0,0.000115,4]
[327075092,1715783439106,-7600.0,0.000115,4]
[327075093,1715783439116,-154.12,0.00011558,2]
[327075094,1715783439126,-35978.0685,0.00011568,2]
[327075095,1715783439137,-3563.6311,0.00011568,2]
[327075096,1715783439148,-63353.4111,0.00011568,2]
[327075097,1715783439159,-1500.0,0.000116,4]
[327075098,1715783439170,-10200.0,0.000116,4]
[327075099,1715783439181,-167.13,0.00011671,2]
[327075100,1715783439191,-150.0,0.00011671,2]
[327075101,1715783439202,-150.0,0.00011671,2]
[327075102,1715783439213,-150.0,0.00011671,2]
[327075103,1715783439224,-1000.0,0.000117,2]
[327075104,1715783439234,-1900.0,0.000117,4]
[327075105,1715783439245,-12800.0,0.000117,4]
[327075106,1715783439255,-1563.85586632,0.00011744,2]
[327075107,1715783439269,-299.19802075,0.0001178,2]
[327075108,1715783439280,-500.0,0.0001178,2]
[327075109,1715783439290,-291.04,0.0001178,2]
[327075110,1715783439301,-500.0,0.0001178,2]
[327075111,1715783439311,-500.0,0.0001178,2]
[327075112,1715783439321,-500.0,0.0001178,2]
[327075113,1715783439331,-500.0,0.0001178,2]
[327075114,1715783439342,-577.4638581,0.00011797,2]
[327075115,1715783439352,-300.0,0.000118,4]
[327075116,1715783439364,-7500.0,0.000118,2]
[327075117,1715783439375,-2500.0,0.000118,4]
[327075118,1715783439386,-300.0,0.00011864,2]
[327075119,1715783439397,-970.0,0.00011879,2]
[327075120,1715783439410,-243.0,0.00011879,2]
[327075121,1715783439422,-914.209,0.00011879,2]
[327075122,1715783439432,-741.656,0.00011879,2]
[327075123,1715783439444,-1790.0,0.00011879,2]
[327075124,1715783439455,-1500.885,0.00011879,2]
[327075125,1715783439466,-2351.0,0.00011879,2]
[327075126,1715783439477,-1006.319,0.00011879,2]
[327075127,1715783439487,-200.0,0.0001188,2]
[327075128,1715783439498,-1000.0,0.0001188,2]
[327075129,1715783439509,-500.0,0.0001188,2]
[327075130,1715783439519,-501.67810207,0.00011897,2]
[327075132,1715783439530,-500.0,0.00011897,2]
[327075134,1715783439541,-150.19349803,0.00011897,2]
[327075135,1715783439552,-500.0,0.00011897,2]
[327075136,1715783439564,-300.56774659,0.00011897,2]
[327075137,1715783439576,-500.0,0.00011897,2]
[327075138,1715783439587,-503.95146855,0.00011897,2]
[327075139,1715783439599,-13187.12690957,0.00011898,2]
[327075140,1715783439612,-13187.12690952,0.00011898,2]
[327075141,1715783439623,-13187.12690952,0.00011898,2]
[327075142,1715783439635,-13187.12690952,0.00011898,2]
[327075143,1715783439646,-13187.12690952,0.00011898,2]
[327075144,1715783439657,-170.27458,0.00011898,2]
[327075145,1715783439667,-286.18925041,0.00011899,2]
[327075146,1715783439678,-500.0,0.00011899,2]
[327075147,1715783439690,-500.0,0.00011899,2]
[327075148,1715783439701,-182.0,0.00011899,2]
[327075149,1715783439712,-150.28,0.00011899,2]
[327075150,1715783439723,-500.0,0.00011899,2]
[327075151,1715783439736,-500.0,0.00011899,2]
[327075152,1715783439746,-357.53384471,0.00011899,2]
[327075153,1715783439757,-500.0,0.00011899,2]
[327075154,1715783439767,-500.0,0.00011899,2]
[327075155,1715783439778,-207.88,0.00011899,2]
[327075156,1715783439788,-530.95,0.00011899,2]
[327075157,1715783439798,-500.0,0.00011899,2]
[327075158,1715783439810,-539.0,0.000119,2]
[327075159,1715783439820,-1870399.21709283,0.000119,2]
[327075160,1715783439834,-342.84,0.000119,2]
[327075161,1715783439847,-296.7,0.000119,2]
[327075162,1715783439872,-757.2001,0.000119,2]
[327075173,1715783440964,-243.38292388,0.00011896,2]
[327075174,1715783440975,-1941.78574809,0.000119,2]
[327075175,1715783440986,-49025.5379091,0.000119,2]
[327075176,1715783440998,-325.93999993,0.000119,2]
[327075177,1715783441013,-4147.11544099,0.000119,2]
[327075178,1715783441331,-63078.69528491,0.000119,2]
[327075198,1715783444636,-586.95467805,0.00010137,2]
[327075327,1715783448551,-282.07532195,0.00010137,2]
[327075329,1715783448560,-523.26,0.00010548,2]
[327075332,1715783448570,-150.0,0.00010548,2]
[327075335,1715783448580,-150.0,0.00010548,2]
[327075338,1715783448590,-163.35,0.00010548,2]
[327075340,1715783448599,-33.1943972,0.00010548,2]
[327075341,1715783448614,-318.0456028,0.00010548,2]
[327075342,1715783448623,-150.0,0.00011807,2]
[327075343,1715783448633,-150.0,0.00011847,2]
[327075344,1715783448643,-444.0,0.00011879,2]
[327075345,1715783448653,-451.377,0.00011879,2]
[327075346,1715783448663,-215.0,0.00011879,2]
[327075347,1715783448673,-3600.4708972,0.00011898,2]
[327075348,1715783448943,-39691.80712468,0.00011898,2]
[327075349,1715783448954,-28310.76842415,0.000119,2]
[327075350,1715783448963,-300.0,0.000119,4]
[327075351,1715783448973,-4906.29511918,0.000119,2]
[327075352,1715783448986,-2500.0,0.000119,4]
[327075353,1715783448997,-150.0,0.00011928,2]
[327075354,1715783449007,-13187.12690952,0.00011941,2]
[327075355,1715783449017,-150.75,0.00011949,2]
[327075356,1715783449027,-211.401798,0.00011967,2]
[327075357,1715783449036,-211.401798,0.00011967,2]
[327075358,1715783449045,-173.762639,0.00011967,2]
[327075359,1715783449055,-150.0,0.00011977,2]
[327075360,1715783449065,-164.52,0.00011977,2]
[327075361,1715783449075,-400.0,0.00011989,2]
[327075362,1715783449084,-4511.9533749,0.00011993,2]
[327075363,1715783449094,-47755.7493271,0.00011993,2]
[327075364,1715783449104,-1448.9454812,0.00011993,2]
[327075365,1715783449114,-1396.8157211,0.00011993,2]
[327075366,1715783449124,-31097.2347822,0.00011993,2]
[327075367,1715783449133,-651.78,0.00011996,2]
[327075368,1715783449142,-500.0,0.00011996,2]
[327075369,1715783449152,-200.0,0.00011998,2]
[327075370,1715783449162,-515.78588726,0.00011998,2]
[327075371,1715783449171,-651.78,0.00011999,2]
[327075372,1715783449181,-651.78,0.00011999,2]
[327075373,1715783449190,-651.78,0.00011999,2]
[327075374,1715783449199,-651.78,0.00011999,2]
[327075375,1715783449209,-651.78,0.00011999,2]
[327075376,1715783449219,-651.78,0.00011999,2]
[327075377,1715783449229,-651.78,0.00011999,2]
[327075378,1715783449239,-651.78,0.00011999,2]
[327075379,1715783449248,-651.78,0.00011999,2]
[327075380,1715783449259,-651.78,0.00011999,2]
[327075381,1715783449268,-651.78,0.00011999,2]
[327075382,1715783449277,-651.78,0.00011999,2]
[327075383,1715783449287,-651.78,0.00011999,2]
[327075384,1715783449296,-651.78,0.00011999,2]
[327075385,1715783449306,-651.78,0.00011999,2]
[327075386,1715783449315,-651.78,0.00011999,2]
[327075387,1715783449325,-651.78,0.00011999,2]
[327075388,1715783449335,-651.78,0.00011999,2]
[327075389,1715783449344,-651.78,0.00011999,2]
[327075390,1715783449354,-651.78,0.00011999,2]
[327075391,1715783449365,-651.78,0.00011999,2]
[327075392,1715783449375,-651.78,0.00011999,2]
[327075393,1715783449384,-651.89360432,0.00011999,2]
[327075394,1715783449394,-500.0,0.00011999,2]
[327075395,1715783449403,-204.97401448,0.00011999,2]
[327075396,1715783449413,-500.0,0.00011999,2]
[327075397,1715783449423,-500.0,0.00011999,2]
[327075398,1715783449432,-500.0,0.00011999,2]
[327075399,1715783449441,-500.0,0.00011999,2]
[327075400,1715783449451,-500.0,0.00011999,2]
[327075401,1715783449460,-500.0,0.00011999,2]
[327075402,1715783449470,-500.0,0.00011999,2]
[327075403,1715783449480,-457.85526213,0.00011999,2]
[327075404,1715783449490,-331032.5191003,0.00012,2]
[327075405,1715783449499,-436097.81840933,0.00012,2]
[327075406,1715783449511,-18807.34973569,0.00012,2]
[327075407,1715783449523,-8798.12486357,0.00012,2]
[327075408,1715783449535,-68515.54080961,0.00012,2]
[327075409,1715783449547,-356.09699987,0.00012,2]
[327075426,1715784232818,150.0,0.00011916,15]
[327075489,1715784632553,-154.42,8.555e-05,2]
[327075491,1715784632563,-389.6,9.718e-05,2]
[327075519,1715784635000,-333.00794755,9.718e-05,2]
[327075520,1715784635012,-2385.44125245,9.718e-05,2]
[327075521,1715784635023,-200.0,9.872e-05,2]
[327075522,1715784635032,-683.5,0.00010315,2]
[327075523,1715784635042,-340.46,0.00010411,2]
[327075524,1715784635052,-795.6,0.00010462,2]
[327075525,1715784635061,-250.0,0.000105,2]
[327075526,1715784635070,-1000.0,0.00010617,2]
[327075527,1715784635079,-150.0,0.00010685,2]
[327075528,1715784635088,-43292.27802188,0.00010695,2]
[327075529,1715784635098,-155.66,0.00010696,2]
[327075530,1715784635107,-2780.38,0.00010696,2]
[327075531,1715784635116,-7561.86,0.000107,2]
[327075532,1715784635126,-19999.99,0.000107,2]
[327075533,1715784635135,-4417.99,0.000107,2]
[327075534,1715784635145,-730.6878,0.00010896,2]
[327075535,1715784635154,-1269.9693,0.00010896,2]
[327075536,1715784635168,-2748.73784033,0.00010957,2]
[327075538,1715784635178,-1083.68,0.00010959,2]
[327075540,1715784635187,-10000.0,0.00010959,2]
[327075542,1715784635197,-22898.7657854,0.00010996,2]
[327075544,1715784635209,-615.25441392,0.00010996,2]
[327075546,1715784635220,-1523.85410116,0.00010996,2]
[327075548,1715784635238,-77071.74674306,0.00010996,2]
[327075551,1715784635249,-140081.61754088,0.00010996,2]
[327075577,1715784639230,-52699.08561558,0.00010996,2]
[327075584,1715784639240,-6707.63458418,0.00010996,2]
[327075591,1715784639254,-3053.67541582,0.00010996,2]
[327075596,1715784639264,-154.42,0.00011086,2]
[327075600,1715784639274,-255.11,0.00011166,2]
[327075604,1715784639291,-61030.89596478,0.0001118,2]
[327075620,1715784641272,-2975.43335436,0.0001118,2]
[327075621,1715784641289,-1380.94150816,0.0001118,2]
[327075622,1715784641300,-715.34804525,0.0001118,2]
[327075623,1715784641315,-8056.11285587,0.0001118,2]
[327075628,1715784643944,-4585.4999997,0.0001118,2]
[327075632,1715784643957,-13761.95271989,0.0001118,2]
[327075636,1715784643967,-188.4240812,0.00011262,2]
[327075638,1715784643977,-3284.0799962,0.00011262,2]
[327075640,1715784643988,-400.0,0.000113,4]
[327075643,1715784643998,-37236.3705,0.00011368,2]
[327075647,1715784644008,-500.0,0.00011368,2]
[327075650,1715784644019,-900.0,0.000114,4]
[327075652,1715784644030,-1400.0,0.000115,4]
[327075654,1715784644040,-1672.11997824,0.00011509,2]
[327075656,1715784644050,-1900.0,0.000116,4]
[327075658,1715784644060,-1000.0,0.000117,2]
[327075660,1715784644070,-2400.0,0.000117,4]
[327075662,1715784644080,-1065.67024231,0.0001176,2]
[327075664,1715784644090,-150.0,0.00011762,2]
[327075666,1715784644100,-500.0,0.0001178,2]
[327075668,1715784644110,-500.0,0.0001178,2]
[327075670,1715784644120,-500.0,0.0001178,2]
[327075672,1715784644130,-500.0,0.0001178,2]
[327075674,1715784644140,-500.0,0.0001178,2]
[327075676,1715784644150,-500.0,0.0001178,2]
[327075678,1715784644160,-500.0,0.0001178,2]
[327075680,1715784644170,-500.0,0.0001178,2]
[327075682,1715784644180,-840.82,0.0001178,2]
[327075684,1715784644190,-840.82,0.0001178,2]
[327075685,1715784644200,-292.12632138,0.0001178,2]
[327075686,1715784644210,-500.0,0.0001178,2]
[327075687,1715784644219,-500.0,0.0001178,2]
[327075688,1715784644229,-400.0,0.000118,4]
[327075689,1715784644240,-1173.46765146,0.0001188,2]
[327075690,1715784644249,-4938.84852562,0.0001188,2]
[327075691,1715784644259,-300.0,0.00011889,2]
[327075692,1715784644269,-1464.0,0.00011889,2]
[327075693,1715784644280,-500.0,0.00011892,2]
[327075694,1715784644290,-840.82,0.00011892,2]
[327075695,1715784644301,-500.0,0.00011892,2]
[327075696,1715784644313,-76547.1423,0.00011893,2]
[327075697,1715784644323,-98979.4188,0.00011893,2]
[327075698,1715784644333,-288.78,0.00011897,2]
[327075699,1715784644342,-170.27458,0.00011898,2]
[327075700,1715784644355,-7489.98089081,0.00011898,2]
[327075701,1715784644364,-7489.9808908,0.00011898,2]
[327075702,1715784644375,-7489.9808908,0.00011898,2]
[327075703,1715784644386,-7489.9808908,0.00011898,2]
[327075704,1715784644396,-7489.9808908,0.00011898,2]
[327075705,1715784644406,-7489.9808908,0.00011898,2]
[327075706,1715784644417,-7489.9808908,0.00011899,2]
[327075707,1715784644427,-186.26694726,0.000119,2]
[327075708,1715784644438,-4763.47481885,0.000119,2]
[327075709,1715784644449,-161.20203728,0.000119,2]
[327075710,1715784644459,-173.13865332,0.000119,2]
[327075711,1715784644469,-400.0,0.000119,4]
[327075712,1715784644480,-1713.0,0.000119,2]
[327075713,1715784644491,-3270.8634128,0.000119,2]
[327075714,1715784644501,-1000.0,0.00011904,2]
[327075715,1715784644512,-500.0,0.00011904,2]
[327075716,1715784644523,-500.0,0.0001194,2]
[327075717,1715784644535,-500.0,0.0001194,2]
[327075718,1715784644545,-74541.59,0.00011941,2]
[327075719,1715784644555,-1000.0,0.00011944,2]
[327075720,1715784644565,-2083.86324947,0.00011987,2]
[327075721,1715784644575,-872.33007984,0.0001199,2]
[327075722,1715784644586,-4763.47481876,0.00011991,2]
[327075723,1715784644596,-1164.0131009,0.00011993,2]
[327075724,1715784644607,-32172.4035141,0.00011993,2]
[327075725,1715784644617,-3041.5101322,0.00011993,2]
[327075726,1715784644626,-1207.4545677,0.00011993,2]
[327075727,1715784644637,-817.67838283,0.00011998,2]
[327075728,1715784644647,-268.16087153,0.00011998,2]
[327075729,1715784644657,-882.99402716,0.00011998,2]
[327075730,1715784644667,-578.94286344,0.00011998,2]
[327075731,1715784644678,-1005883.35701422,0.00011998,2]
[327075733,1715784645009,-500.0,0.0001178,2]
[327075735,1715784645019,-274.728,0.0001178,2]
[327075776,1715784649008,-159.71369038,0.00010896,2]
[327075777,1715784649019,-225.272,0.0001178,2]
[327075778,1715784649030,-500.0,0.0001178,2]
[327075779,1715784649039,-4.16359964,0.00011993,2]
[327075780,1715784649050,-21829.26499986,0.00011993,2]
[327075781,1715784649059,-1247.47877474,0.00011997,2]
[327075782,1715784649069,-500.0,0.00011997,2]
[327075783,1715784649079,-164755.75030424,0.00011998,2]
[327075784,1715784649090,-64467.58728801,0.00011998,2]
[327075785,1715784649102,-644.19,0.00011998,2]
[327075786,1715784649113,-10443.17545257,0.00011998,2]
[327075787,1715784649125,-4467.72238536,0.00011998,2]
[327075788,1715784649136,-9477.39334563,0.00011998,2]
[327075789,1715784649148,-32539.52590479,0.00011998,2]
[327075790,1715784649159,-39356.9,0.00011998,2]
[327075791,1715784649171,-6545.359872,0.00011998,2]
[327075792,1715784649183,-3207.40705,0.00011998,2]
[327075822,1715785488141,-600.0,8.544e-05,2]
[327075829,1715785831834,-217.82411991,8.544e-05,2]
[327075832,1715785831843,-155.0,8.544e-05,2]
[327075835,1715785831854,-150.0,9.998e-05,2]
[327075838,1715785831863,-5925.47588009,9.999e-05,2]
[327075840,1715785831874,-37366.80214179,9.999e-05,2]
[327075846,1715785832123,-14092.74400465,0.0001,2]
[327075847,1715785832140,-789.21148886,0.00010312,2]
[327075848,1715785832151,-236.76,0.00010313,2]
[327075849,1715785832160,-158.11,0.00010411,2]
[327075850,1715785832169,-250.0,0.00010515,2]
[327075851,1715785832179,-638.79,0.00010521,2]
[327075852,1715785832188,-156.76,0.00010759,2]
[327075853,1715785832197,-1000.0,0.00010766,2]
[327075854,1715785832206,-499.99,0.00010766,2]
[327075855,1715785832215,-19881.18,0.00010829,2]
[327075856,1715785832224,-156.76,0.00010829,2]
[327075857,1715785832234,-4877.093,0.00010896,2]
[327075858,1715785832243,-156.76,0.00010899,2]
[327075859,1715785832252,-500.0,0.00010959,2]
[327075860,1715785832261,-150.0,0.00010959,2]
[327075861,1715785832270,-485.0,0.00010959,2]
[327075862,1715785832279,-156.76,0.00010969,2]
[327075863,1715785832289,-176.74,0.00010989,2]
[327075864,1715785832298,-79139.68281244,0.00010996,2]
[327075865,1715785832307,-210.0,0.00010998,2]
[327075866,1715785832317,-600.0,0.00011016,2]
[327075867,1715785832326,-156.76,0.00011039,2]
[327075868,1715785832336,-156.76,0.00011109,2]
[327075869,1715785832345,-156.76,0.00011179,2]
[327075870,1715785832355,-156.76,0.00011249,2]
[327075871,1715785832364,-156.76,0.00011319,2]
[327075872,1715785832375,-1004.09597399,0.00011396,2]
[327075873,1715785832386,-2500.0,0.000114,2]
[327075874,1715785832398,-206.7616193,0.00011412,2]
[327075875,1715785832409,-600.0,0.00011475,2]
[327075876,1715785832419,-212.95786766,0.0001149,2]
[327075877,1715785832428,-599.27979208,0.00011499,2]
[327075878,1715785832438,-4569.36790645,0.000115,2]
[327075879,1715785832457,-255.97559429,0.000115,2]
[327075880,1715785832468,-448.74875887,0.000115,2]
[327075881,1715785832480,-5536.27218384,0.000115,2]
[327075882,1715785832492,-700.0,0.000115,2]
[327075883,1715785832504,-921.27823454,0.000115,2]
[327075884,1715785832516,-3571.84322377,0.000115,2]
[327075890,1715785838010,-2440.62941193,0.000115,2]
[327075893,1715785838022,-425129.85468631,0.000115,2]
[327075895,1715785838031,-807.56024817,0.00011512,2]
[327075896,1715785838042,-236.76,0.00011602,2]
[327075897,1715785838051,-523.66,0.00011671,2]
[327075898,1715785838062,-523.66,0.00011671,2]
[327075899,1715785838072,-523.36,0.00011671,2]
[327075900,1715785838081,-1000.0,0.0001168,2]
[327075901,1715785838091,-150.0,0.0001175,2]
[327075902,1715785838100,-150.0,0.00011753,2]
[327075903,1715785838109,-150.0,0.00011772,2]
[327075904,1715785838119,-150.0,0.00011772,2]
[327075905,1715785838129,-150.0,0.00011775,2]
[327075906,1715785838138,-317.946,0.0001178,2]
[327075907,1715785838148,-151.6665957,0.0001178,2]
[327075908,1715785838157,-402.96129084,0.0001178,2]
[327075909,1715785838166,-516.93037112,0.0001178,2]
[327075910,1715785838175,-532.00831762,0.0001178,2]
[327075911,1715785838184,-506.12731919,0.0001178,2]
[327075912,1715785838194,-500.0,0.0001178,2]
[327075913,1715785838203,-3000.0,0.0001178,2]
[327075914,1715785838212,-3000.0,0.0001178,2]
[327075915,1715785838221,-500.0,0.0001178,2]
[327075916,1715785838231,-501.62541297,0.0001178,2]
[327075917,1715785838240,-500.0,0.0001178,2]
[327075918,1715785838251,-500.0,0.0001178,2]
[327075919,1715785838260,-324.75424693,0.0001178,2]
[327075920,1715785838270,-500.0,0.0001178,2]
[327075921,1715785838279,-500.0,0.0001178,2]
[327075922,1715785838288,-517.53911763,0.0001178,2]
[327075923,1715785838298,-500.0,0.0001178,2]
[327075924,1715785838307,-500.0,0.0001178,2]
[327075925,1715785838318,-500.0,0.0001178,2]
[327075926,1715785838328,-500.79483261,0.0001178,2]
[327075927,1715785838338,-500.0,0.0001178,2]
[327075928,1715785838347,-521.20567708,0.0001178,2]
[327075929,1715785838356,-525.64769538,0.0001178,2]
[327075930,1715785838366,-500.0,0.0001178,2]
[327075931,1715785838376,-500.0,0.0001178,2]
[327075932,1715785838385,-501.68608915,0.0001178,2]
[327075933,1715785838394,-500.0,0.0001178,2]
[327075934,1715785838404,-500.0,0.0001178,2]
[327075935,1715785838414,-502.5338981,0.0001178,2]
[327075936,1715785838423,-589.82772126,0.0001178,2]
[327075937,1715785838432,-500.0,0.0001178,2]
[327075938,1715785838442,-500.0,0.0001178,2]
[327075939,1715785838452,-500.0,0.0001178,2]
[327075940,1715785838461,-500.0,0.0001178,2]
[327075941,1715785838471,-500.0,0.0001178,2]
[327075942,1715785838481,-515.06525624,0.0001178,2]
[327075943,1715785838490,-520.54887771,0.0001178,2]
[327075944,1715785838501,-500.0,0.0001178,2]
[327075945,1715785838511,-343.19,0.0001178,2]
[327075946,1715785838520,-500.0,0.0001178,2]
[327075947,1715785838530,-500.0,0.0001178,2]
[327075948,1715785838540,-621.73748727,0.0001178,2]
[327075949,1715785838551,-500.0,0.0001178,2]
[327075950,1715785838569,-3000.0,0.0001178,2]
[327075951,1715785838581,-3000.0,0.0001178,2]
[327075952,1715785838590,-500.0,0.0001178,2]
[327075953,1715785838599,-530.92,0.0001178,2]
[327075954,1715785838609,-500.0,0.0001178,2]
[327075955,1715785838618,-500.0,0.0001178,2]
[327075956,1715785838629,-500.0,0.0001178,2]
[327075957,1715785838639,-500.0,0.0001178,2]
[327075958,1715785838649,-500.0,0.0001178,2]
[327075959,1715785838659,-500.0,0.0001178,2]
[327075960,1715785838670,-500.0,0.0001178,2]
[327075961,1715785838681,-500.0,0.0001178,2]
[327075962,1715785838698,-500.0,0.0001178,2]
[327075963,1715785838708,-500.0,0.0001178,2]
[327075964,1715785838717,-500.0,0.0001178,2]
[327075965,1715785838727,-150.0,0.00011798,2]
[327075966,1715785838736,-150.0,0.00011801,2]
[327075967,1715785838745,-150.0,0.00011837,2]
[327075968,1715785838755,-150.0,0.00011851,2]
[327075969,1715785838764,-150.0,0.00011855,2]
[327075970,1715785838774,-318.46855404,0.0001188,2]
[327075971,1715785838783,-150.0,0.00011883,2]
[327075972,1715785838792,-3000.0,0.00011892,2]
[327075973,1715785838801,-575.23781689,0.00011892,2]
[327075974,1715785838810,-3000.0,0.00011892,2]
[327075975,1715785838820,-500.0,0.00011896,2]
[327075976,1715785838829,-500.0,0.00011896,2]
[327075977,1715785838838,-500.0,0.00011896,2]
[327075978,1715785838847,-500.0,0.00011896,2]
[327075979,1715785838857,-500.0,0.00011896,2]
[327075980,1715785838867,-500.0,0.00011896,2]
[327075981,1715785838876,-500.0,0.00011896,2]
[327075982,1715785838885,-500.0,0.00011897,2]
[327075983,1715785838894,-500.0,0.00011897,2]
[327075984,1715785838904,-76.09572216,0.00011897,2]
[327075985,1715785838948,-423.90427784,0.00011897,2]
[327075987,1715785838958,-98.17615426,0.00011897,2]
[327075989,1715785838969,-401.82384574,0.00011897,2]
[327075991,1715785838979,-208.12578491,0.00011897,2]
[327075993,1715785838988,-514.12421509,0.00011897,2]
[327075995,1715785838997,-500.0,0.00011897,2]
[327075997,1715785839008,-500.0,0.00011897,2]
[327075999,1715785839017,-500.0,0.00011897,2]
[327076001,1715785839027,-500.0,0.00011897,2]
[327076003,1715785839036,-500.0,0.00011897,2]
[327076005,1715785839046,-500.0,0.00011897,2]
[327076007,1715785839055,-174.76,0.00011897,2]
[327076009,1715785839064,-500.0,0.00011897,2]
[327076011,1715785839073,-500.0,0.00011897,2]
[327076013,1715785839083,-500.0,0.00011897,2]
[327076015,1715785839092,-500.0,0.00011897,2]
[327076017,1715785839101,-150.0,0.00011897,2]
[327076020,1715785839111,-500.0,0.00011897,2]
[327076022,1715785839121,-500.0,0.00011897,2]
[327076024,1715785839130,-512.78159236,0.00011897,2]
[327076025,1715785839139,-500.0,0.00011897,2]
[327076028,1715785839149,-513.16,0.00011897,2]
[327076030,1715785839158,-483.06,0.00011897,2]
[327076032,1715785839167,-328.38,0.00011897,2]
[327076033,1715785839176,-621.35026694,0.00011897,2]
[327076036,1715785839186,-204.84,0.00011897,2]
[327076037,1715785839196,-500.0,0.00011897,2]
[327076039,1715785839205,-500.0,0.00011897,2]
[327076042,1715785839214,-500.0,0.00011897,2]
[327076044,1715785839224,-500.0,0.00011897,2]
[327076046,1715785839233,-500.0,0.00011897,2]
[327076048,1715785839243,-500.0,0.00011897,2]
[327076049,1715785839253,-500.0,0.00011897,2]
[327076052,1715785839262,-500.0,0.00011897,2]
[327076054,1715785839272,-191.85,0.00011897,2]
[327076056,1715785839281,-506.51,0.00011897,2]
[327076057,1715785839291,-204.57451448,0.00011897,2]
[327076060,1715785839301,-500.0,0.00011897,2]
[327076061,1715785839311,-500.0,0.00011897,2]